[Event "Titled Tuesday Blitz March 14 Late 2023"]
[White "Sanchez Alvares, Kelvin Antonio"]
[Black "Quispe Santacruz, Javier"]
[WhiteFideId "3906680"]
[BlackFideId "3800920"]
[WhiteElo "2217"]
[BlackElo "1875"]
[Result "1-0"]
[Round "04"]
[TimeControl "180+1"]
[Date "2023.03.14"]
[WhiteClock "0:00:07"]
[BlackClock "0:00:01"]

1. e4 {[%clk 0:02:55]}  c5 {[%clk 0:02:59]} 2. Nf3 {[%clk 0:02:55]}  d6 {[%clk 0:02:58]} 3. d4 {[%clk 0:02:54]}  cxd4 {[%clk 0:02:59]} 4. Nxd4 {[%clk 0:02:55]}  Nf6 {[%clk 0:02:59]} 5. Nc3 {[%clk 0:02:54]}  g6 {[%clk 0:02:59]} 6. f3 {[%clk 0:02:54]}  Bg7 {[%clk 0:02:58]} 7. Bc4 {[%clk 0:02:54]}  O-O {[%clk 0:02:57]} 8. Be3 {[%clk 0:02:54]}  Nc6 {[%clk 0:02:56]} 9. Qd2 {[%clk 0:02:50]}  Bd7 {[%clk 0:02:56]} 10. h4 {[%clk 0:02:45]}  Rc8 {[%clk 0:02:54]} 11. Bb3 {[%clk 0:02:45]}  h5 {[%clk 0:02:48]} 12. O-O-O {[%clk 0:02:36]}  Nxd4 {[%clk 0:02:48]} 13. Bxd4 {[%clk 0:02:36]}  b5 {[%clk 0:02:49]} 14. Nd5 {[%clk 0:02:35]}  Nxd5 {[%clk 0:02:47]} 15. Bxg7 {[%clk 0:02:35]}  Kxg7 {[%clk 0:02:47]} 16. Bxd5 {[%clk 0:02:22]}  a5 {[%clk 0:02:41]} 17. a3 {[%clk 0:02:19]}  Qc7 {[%clk 0:02:30]} 18. Kb1 {[%clk 0:02:16]}  b4 {[%clk 0:02:29]} 19. axb4 {[%clk 0:02:07]}  axb4 {[%clk 0:02:29]} 20. Bb3 {[%clk 0:02:07]}  Be6 {[%clk 0:02:28]} 21. Qxb4 {[%clk 0:01:39]}  Rb8 {[%clk 0:02:23]} 22. Qd4+ {[%clk 0:01:29]}  Kh7 {[%clk 0:02:16]} 23. Rd3 {[%clk 0:01:26]}  Ra8 {[%clk 0:01:59]} 24. Rhd1 {[%clk 0:01:20]}  Qa5 {[%clk 0:01:57]} 25. Kc1 {[%clk 0:01:19]}  Rfc8 {[%clk 0:01:42]} 26. c4 {[%clk 0:00:49]}  Rab8 {[%clk 0:01:16]} 27. Qc3 {[%clk 0:00:48]}  Rb4 {[%clk 0:01:14]} 28. Kd2 {[%clk 0:00:26]}  Qc5 {[%clk 0:01:05]} 29. Ke2 {[%clk 0:00:22]}  Bxc4 {[%clk 0:01:01]} 30. Bxc4 {[%clk 0:00:21]}  Rxc4 {[%clk 0:01:02]} 31. Qa3 {[%clk 0:00:19]}  Rc2+ {[%clk 0:01:02]} 32. R1d2 {[%clk 0:00:20]}  Rxd2+ {[%clk 0:00:59]} 33. Rxd2 {[%clk 0:00:18]}  Qc4+ {[%clk 0:00:57]} 34. Qd3 {[%clk 0:00:18]}  Qc5 {[%clk 0:00:50]} 35. Qa3 {[%clk 0:00:17]}  Qg1 {[%clk 0:00:49]} 36. Kd3 {[%clk 0:00:15]}  Qf1+ {[%clk 0:00:47]} 37. Ke3 {[%clk 0:00:15]}  Qe1+ {[%clk 0:00:46]} 38. Re2 {[%clk 0:00:15]}  Qc1+ {[%clk 0:00:45]} 39. Kf2 {[%clk 0:00:14]}  Qf4 {[%clk 0:00:41]} 40. g3 {[%clk 0:00:14]}  Qc1 {[%clk 0:00:38]} 41. Qb3 {[%clk 0:00:14]}  e6 {[%clk 0:00:31]} 42. Qb7 {[%clk 0:00:13]}  Rc7 {[%clk 0:00:27]} 43. Qb6 {[%clk 0:00:13]}  Qc5+ {[%clk 0:00:19]} 44. Qxc5 {[%clk 0:00:13]}  Rxc5 {[%clk 0:00:17]} 45. b4 {[%clk 0:00:13]}  Rb5 {[%clk 0:00:17]} 46. Rb2 {[%clk 0:00:14]}  Kg7 {[%clk 0:00:17]} 47. Ke3 {[%clk 0:00:14]}  Kf6 {[%clk 0:00:17]} 48. Kd4 {[%clk 0:00:14]}  Ke7 {[%clk 0:00:05]} 49. Kc4 {[%clk 0:00:14]}  Rb8 {[%clk 0:00:06]} 50. b5 {[%clk 0:00:15]}  Kd7 {[%clk 0:00:06]} 51. Kb4 {[%clk 0:00:14]}  Kc7 {[%clk 0:00:04]} 52. Rc2+ {[%clk 0:00:14]}  Kb7 {[%clk 0:00:03]} 53. Rc6 {[%clk 0:00:13]}  Rd8 {[%clk 0:00:03]} 54. Kc4 {[%clk 0:00:13]}  d5+ {[%clk 0:00:03]} 55. exd5 {[%clk 0:00:13]}  Rxd5 {[%clk 0:00:04]} 56. Ra6 {[%clk 0:00:11]}  Re5 {[%clk 0:00:02]} 57. Ra3 {[%clk 0:00:08]}  Re1 {[%clk 0:00:02]} 58. f4 {[%clk 0:00:08]}  Rc1+ {[%clk 0:00:03]} 59. Kb4 {[%clk 0:00:07]}  Rb1+ {[%clk 0:00:04]} 60. Kc5 {[%clk 0:00:07]}  Rc1+ {[%clk 0:00:05]} 61. Kd6 {[%clk 0:00:07]}  Rb1 {[%clk 0:00:03]} 62. Ke7 {[%clk 0:00:07]}  Rxb5 {[%clk 0:00:03]} 63. Kxf7 {[%clk 0:00:07]}  Rf5+ {[%clk 0:00:01]} 64. Kxg6 {[%clk 0:00:07]} 1-0


[Site "https://www.chess.com"]

[Event "Titled Tuesday Blitz March 14 Late 2023"]
[White "Santos Flores, Alberto"]
[Black "Jimenez, Joaquin"]
[WhiteFideId "3601234"]
[BlackFideId "109860"]
[WhiteElo "2235"]
[BlackElo "2163"]
[Result "1-0"]
[Round "04"]
[TimeControl "180+1"]
[Date "2023.03.14"]
[WhiteClock "0:01:20"]
[BlackClock "0:00:06"]

1. e4 {[%clk 0:03:00]}  e6 {[%clk 0:02:57]} 2. d4 {[%clk 0:03:00]}  d5 {[%clk 0:02:57]} 3. Nc3 {[%clk 0:03:00]}  Bb4 {[%clk 0:02:56]} 4. e5 {[%clk 0:03:00]}  c5 {[%clk 0:02:55]} 5. a3 {[%clk 0:03:00]}  Bxc3+ {[%clk 0:02:55]} 6. bxc3 {[%clk 0:03:01]}  Ne7 {[%clk 0:02:55]} 7. Nf3 {[%clk 0:03:01]}  b6 {[%clk 0:02:53]} 8. a4 {[%clk 0:02:59]}  Ba6 {[%clk 0:02:50]} 9. Bb5+ {[%clk 0:02:58]}  Bxb5 {[%clk 0:02:40]} 10. axb5 {[%clk 0:02:58]}  a5 {[%clk 0:02:36]} 11. bxa6 {[%clk 0:02:49]}  Rxa6 {[%clk 0:02:36]} 12. Bg5 {[%clk 0:02:48]}  Qc8 {[%clk 0:02:14]} 13. Bxe7 {[%clk 0:02:47]}  Kxe7 {[%clk 0:02:12]} 14. O-O {[%clk 0:02:47]}  Nc6 {[%clk 0:02:11]} 15. Qd2 {[%clk 0:02:47]}  h6 {[%clk 0:02:07]} 16. c4 {[%clk 0:02:39]}  Rd8 {[%clk 0:01:58]} 17. cxd5 {[%clk 0:02:38]}  exd5 {[%clk 0:01:06]} 18. Qc3 {[%clk 0:02:28]}  Nb4 {[%clk 0:00:54]} 19. Rxa6 {[%clk 0:02:22]}  Nxa6 {[%clk 0:00:53]} 20. Qa3 {[%clk 0:02:17]}  Kf8 {[%clk 0:00:35]} 21. Ra1 {[%clk 0:02:17]}  Nb4 {[%clk 0:00:33]} 22. Qb2 {[%clk 0:02:03]}  Kg8 {[%clk 0:00:32]} 23. c3 {[%clk 0:02:03]}  Nd3 {[%clk 0:00:27]} 24. Qxb6 {[%clk 0:02:02]}  cxd4 {[%clk 0:00:27]} 25. cxd4 {[%clk 0:02:00]}  Nf4 {[%clk 0:00:21]} 26. g3 {[%clk 0:01:56]}  Ne6 {[%clk 0:00:20]} 27. Ra7 {[%clk 0:01:52]}  Qc1+ {[%clk 0:00:19]} 28. Kg2 {[%clk 0:01:51]}  Qc3 {[%clk 0:00:14]} 29. Qb7 {[%clk 0:01:43]}  Rf8 {[%clk 0:00:13]} 30. Qxd5 {[%clk 0:01:43]}  Rd8 {[%clk 0:00:13]} 31. Qb7 {[%clk 0:01:41]}  Rf8 {[%clk 0:00:12]} 32. d5 {[%clk 0:01:40]}  Nc5 {[%clk 0:00:12]} 33. Qc7 {[%clk 0:01:35]}  Qb4 {[%clk 0:00:08]} 34. d6 {[%clk 0:01:32]}  Ne6 {[%clk 0:00:08]} 35. Qe7 {[%clk 0:01:30]}  Qe4 {[%clk 0:00:07]} 36. d7 {[%clk 0:01:22]}  Ng5 {[%clk 0:00:06]} 37. Qxf8+ {[%clk 0:01:22]}  Kh7 {[%clk 0:00:06]} 38. Qa3 {[%clk 0:01:20]} 1-0


[Site "https://www.chess.com"]

[Event "Titled Tuesday Blitz March 14 Late 2023"]
[White "Sarana, Alexey"]
[Black "Ozen, Bahadir"]
[WhiteFideId "24133795"]
[BlackFideId "6337058"]
[WhiteElo "2714"]
[BlackElo "2503"]
[Result "1-0"]
[Round "04"]
[TimeControl "180+1"]
[Date "2023.03.14"]
[WhiteClock "0:00:55"]
[BlackClock "0:00:19"]

1. c4 {[%clk 0:02:36]}  e6 {[%clk 0:02:52]} 2. Nc3 {[%clk 0:02:36]}  d5 {[%clk 0:02:52]} 3. d4 {[%clk 0:02:35]}  c6 {[%clk 0:02:53]} 4. cxd5 {[%clk 0:02:34]}  exd5 {[%clk 0:02:52]} 5. Bf4 {[%clk 0:02:35]}  Bd6 {[%clk 0:02:46]} 6. Bxd6 {[%clk 0:02:34]}  Qxd6 {[%clk 0:02:47]} 7. e3 {[%clk 0:02:33]}  Bf5 {[%clk 0:02:43]} 8. Nge2 {[%clk 0:02:33]}  Ne7 {[%clk 0:02:35]} 9. Ng3 {[%clk 0:02:28]}  Bg6 {[%clk 0:02:35]} 10. h4 {[%clk 0:02:28]}  h6 {[%clk 0:02:35]} 11. h5 {[%clk 0:02:27]}  Bh7 {[%clk 0:02:35]} 12. Bd3 {[%clk 0:02:20]}  Bxd3 {[%clk 0:02:34]} 13. Qxd3 {[%clk 0:02:21]}  O-O {[%clk 0:02:32]} 14. O-O-O {[%clk 0:02:21]}  Nd7 {[%clk 0:02:29]} 15. Kb1 {[%clk 0:02:21]}  Nf6 {[%clk 0:02:12]} 16. Rh4 {[%clk 0:02:16]}  Rfe8 {[%clk 0:02:06]} 17. Rf4 {[%clk 0:02:16]}  Rad8 {[%clk 0:02:03]} 18. Nf5 {[%clk 0:02:04]}  Nxf5 {[%clk 0:02:03]} 19. Rxf5 {[%clk 0:02:05]}  Ne4 {[%clk 0:01:44]} 20. Nxe4 {[%clk 0:02:04]}  Rxe4 {[%clk 0:01:44]} 21. Qe2 {[%clk 0:01:51]}  Rde8 {[%clk 0:01:40]} 22. Qf3 {[%clk 0:01:51]}  Qe7 {[%clk 0:01:39]} 23. a3 {[%clk 0:01:50]}  a5 {[%clk 0:01:39]} 24. Rc1 {[%clk 0:01:49]}  a4 {[%clk 0:01:38]} 25. Qd1 {[%clk 0:01:48]}  Ra8 {[%clk 0:01:38]} 26. g3 {[%clk 0:01:45]}  Qe6 {[%clk 0:01:36]} 27. Rf4 {[%clk 0:01:44]}  Rxf4 {[%clk 0:01:35]} 28. gxf4 {[%clk 0:01:45]}  Qf5+ {[%clk 0:01:35]} 29. Ka2 {[%clk 0:01:44]}  Kf8 {[%clk 0:01:34]} 30. Qe2 {[%clk 0:01:38]}  Kg8 {[%clk 0:01:32]} 31. Rg1 {[%clk 0:01:36]}  Kf8 {[%clk 0:01:32]} 32. Qg4 {[%clk 0:01:35]}  Qxg4 {[%clk 0:01:32]} 33. Rxg4 {[%clk 0:01:36]}  f6 {[%clk 0:01:24]} 34. Kb1 {[%clk 0:01:34]}  Kf7 {[%clk 0:01:16]} 35. Rg1 {[%clk 0:01:31]}  Ra5 {[%clk 0:01:14]} 36. f5 {[%clk 0:01:28]}  Rb5 {[%clk 0:00:59]} 37. Rc1 {[%clk 0:01:28]}  Rb3 {[%clk 0:00:53]} 38. Rc5 {[%clk 0:01:25]}  Rb5 {[%clk 0:00:30]} 39. Rxb5 {[%clk 0:01:25]}  cxb5 {[%clk 0:00:31]} 40. b3 {[%clk 0:00:52]}  axb3 {[%clk 0:00:19]} 41. Kb2 {[%clk 0:00:51]}  b4 {[%clk 0:00:17]} 42. a4 {[%clk 0:00:51]}  Ke7 {[%clk 0:00:16]} 43. Kxb3 {[%clk 0:00:52]}  Kd6 {[%clk 0:00:16]} 44. Kxb4 {[%clk 0:00:52]}  b6 {[%clk 0:00:16]} 45. Kb5 {[%clk 0:00:53]}  Kc7 {[%clk 0:00:17]} 46. f3 {[%clk 0:00:53]}  Kb7 {[%clk 0:00:17]} 47. e4 {[%clk 0:00:54]}  dxe4 {[%clk 0:00:18]} 48. fxe4 {[%clk 0:00:54]}  Kc7 {[%clk 0:00:19]} 49. e5 {[%clk 0:00:55]} 1-0


[Site "https://www.chess.com"]

[Event "Titled Tuesday Blitz March 14 Late 2023"]
[White "Sarkar, Justin"]
[Black "Hartikainen, Jarmo"]
[WhiteFideId "2010011"]
[BlackFideId "503134"]
[WhiteElo "2189"]
[BlackElo "2175"]
[Result "1-0"]
[Round "04"]
[TimeControl "180+1"]
[Date "2023.03.14"]
[WhiteClock "0:00:05"]
[BlackClock "0:00:31"]

1. d4 {[%clk 0:02:57]}  Nf6 {[%clk 0:02:59]} 2. c4 {[%clk 0:02:57]}  g6 {[%clk 0:02:59]} 3. Nc3 {[%clk 0:02:56]}  d5 {[%clk 0:02:59]} 4. cxd5 {[%clk 0:02:56]}  Nxd5 {[%clk 0:02:59]} 5. e4 {[%clk 0:02:57]}  Nxc3 {[%clk 0:02:59]} 6. bxc3 {[%clk 0:02:57]}  Bg7 {[%clk 0:03:00]} 7. Bc4 {[%clk 0:02:57]}  O-O {[%clk 0:02:59]} 8. Ne2 {[%clk 0:02:57]}  c5 {[%clk 0:02:59]} 9. Be3 {[%clk 0:02:49]}  Qc7 {[%clk 0:02:55]} 10. Rc1 {[%clk 0:02:44]}  Nd7 {[%clk 0:02:48]} 11. h4 {[%clk 0:02:24]}  h5 {[%clk 0:02:30]} 12. e5 {[%clk 0:02:14]}  Nb6 {[%clk 0:02:10]} 13. Bb3 {[%clk 0:02:13]}  Bg4 {[%clk 0:01:54]} 14. f3 {[%clk 0:02:04]}  Bf5 {[%clk 0:01:33]} 15. Ng3 {[%clk 0:01:52]}  Qd7 {[%clk 0:01:24]} 16. dxc5 {[%clk 0:01:37]}  Nc8 {[%clk 0:01:22]} 17. Qxd7 {[%clk 0:01:22]}  Bxd7 {[%clk 0:01:21]} 18. f4 {[%clk 0:01:22]}  e6 {[%clk 0:01:16]} 19. Kf2 {[%clk 0:01:08]}  Bc6 {[%clk 0:01:13]} 20. Ne2 {[%clk 0:01:02]}  Ne7 {[%clk 0:01:12]} 21. Nd4 {[%clk 0:01:01]}  Rac8 {[%clk 0:01:05]} 22. Rhd1 {[%clk 0:00:53]}  Bd5 {[%clk 0:00:52]} 23. Nb5 {[%clk 0:00:39]}  Nf5 {[%clk 0:00:45]} 24. Bxd5 {[%clk 0:00:31]}  exd5 {[%clk 0:00:44]} 25. Rxd5 {[%clk 0:00:24]}  Nxh4 {[%clk 0:00:44]} 26. Nd6 {[%clk 0:00:21]}  Rc7 {[%clk 0:00:43]} 27. g3 {[%clk 0:00:12]}  Nf5 {[%clk 0:00:42]} 28. Nxf5 {[%clk 0:00:12]}  gxf5 {[%clk 0:00:43]} 29. Rh1 {[%clk 0:00:12]}  Rfc8 {[%clk 0:00:41]} 30. Rxh5 {[%clk 0:00:11]}  b6 {[%clk 0:00:38]} 31. Rxf5 {[%clk 0:00:11]}  bxc5 {[%clk 0:00:37]} 32. Rg5 {[%clk 0:00:11]}  Kf8 {[%clk 0:00:37]} 33. Rh5 {[%clk 0:00:05]}  Rc6 {[%clk 0:00:36]} 34. f5 {[%clk 0:00:05]}  Ke8 {[%clk 0:00:32]} 35. f6 {[%clk 0:00:05]}  Bf8 {[%clk 0:00:32]} 36. Rh8 {[%clk 0:00:05]}  Re6 {[%clk 0:00:31]} 37. Bh6 {[%clk 0:00:05]} 1-0


[Site "https://www.chess.com"]

[Event "Titled Tuesday Blitz March 14 Late 2023"]
[White "Sattarov, Bobir"]
[Black "Diaz Perez, Michel Alejandro"]
[WhiteFideId "14203081"]
[BlackFideId "3517179"]
[WhiteElo "2351"]
[BlackElo "2333"]
[Result "0-1"]
[Round "04"]
[TimeControl "180+1"]
[Date "2023.03.14"]
[WhiteClock "0:00:21"]
[BlackClock "0:00:17"]

1. e4 {[%clk 0:03:00]}  c6 {[%clk 0:02:57]} 2. c4 {[%clk 0:03:00]}  d5 {[%clk 0:02:58]} 3. exd5 {[%clk 0:03:01]}  cxd5 {[%clk 0:02:59]} 4. cxd5 {[%clk 0:03:02]}  Nf6 {[%clk 0:02:59]} 5. Qa4+ {[%clk 0:03:02]}  Nbd7 {[%clk 0:02:53]} 6. Nc3 {[%clk 0:03:03]}  g6 {[%clk 0:02:52]} 7. Bc4 {[%clk 0:03:04]}  Bg7 {[%clk 0:02:52]} 8. d3 {[%clk 0:03:04]}  O-O {[%clk 0:02:53]} 9. Nf3 {[%clk 0:03:04]}  Nb6 {[%clk 0:02:20]} 10. Qb3 {[%clk 0:03:04]}  Bg4 {[%clk 0:02:19]} 11. Ne5 {[%clk 0:02:54]}  Bf5 {[%clk 0:02:19]} 12. O-O {[%clk 0:02:34]}  Nfxd5 {[%clk 0:02:16]} 13. Nxf7 {[%clk 0:02:30]}  Rxf7 {[%clk 0:02:06]} 14. Nxd5 {[%clk 0:02:30]}  Nxc4 {[%clk 0:02:04]} 15. dxc4 {[%clk 0:02:29]}  Rc8 {[%clk 0:01:58]} 16. Bg5 {[%clk 0:02:18]}  h6 {[%clk 0:01:52]} 17. Bh4 {[%clk 0:02:15]}  g5 {[%clk 0:01:50]} 18. Bg3 {[%clk 0:02:15]}  e6 {[%clk 0:01:46]} 19. Ne3 {[%clk 0:02:13]}  Bg6 {[%clk 0:01:45]} 20. Rad1 {[%clk 0:02:09]}  Qa5 {[%clk 0:01:33]} 21. Rd6 {[%clk 0:02:02]}  Rc6 {[%clk 0:01:22]} 22. Rxc6 {[%clk 0:01:56]}  bxc6 {[%clk 0:01:23]} 23. Rd1 {[%clk 0:01:56]}  Qa6 {[%clk 0:01:19]} 24. h3 {[%clk 0:01:45]}  Rb7 {[%clk 0:01:18]} 25. Rd8+ {[%clk 0:01:35]}  Kh7 {[%clk 0:01:16]} 26. Qd1 {[%clk 0:01:36]}  Rxb2 {[%clk 0:01:13]} 27. Rd7 {[%clk 0:01:35]}  Rb1 {[%clk 0:01:08]} 28. Be5 {[%clk 0:01:30]}  Rxd1+ {[%clk 0:01:02]} 29. Nxd1 {[%clk 0:01:31]}  h5 {[%clk 0:00:58]} 30. Rxg7+ {[%clk 0:01:25]}  Kh6 {[%clk 0:00:58]} 31. Re7 {[%clk 0:01:21]}  Bf5 {[%clk 0:00:41]} 32. Ne3 {[%clk 0:01:18]}  Qxa2 {[%clk 0:00:27]} 33. h4 {[%clk 0:00:35]}  gxh4 {[%clk 0:00:22]} 34. Rc7 {[%clk 0:00:33]}  Qa5 {[%clk 0:00:18]} 35. Kh2 {[%clk 0:00:21]}  Qxe5+ {[%clk 0:00:17]} 0-1


[Site "https://www.chess.com"]

[Event "Titled Tuesday Blitz March 14 Late 2023"]
[White "Sonnenschein, Philipp"]
[Black "Wang, Alexander J"]
[WhiteFideId "16250877"]
[BlackFideId "30955270"]
[WhiteElo "2224"]
[BlackElo "2220"]
[Result "0-1"]
[Round "04"]
[TimeControl "180+1"]
[Date "2023.03.14"]
[WhiteClock "0:00:06"]
[BlackClock "0:00:24"]

1. d4 {[%clk 0:03:00]}  d5 {[%clk 0:02:59]} 2. c4 {[%clk 0:03:00]}  e6 {[%clk 0:03:00]} 3. Nf3 {[%clk 0:03:00]}  c5 {[%clk 0:03:00]} 4. cxd5 {[%clk 0:03:00]}  exd5 {[%clk 0:03:00]} 5. g3 {[%clk 0:03:00]}  Nf6 {[%clk 0:03:00]} 6. Bg2 {[%clk 0:03:00]}  Nc6 {[%clk 0:03:00]} 7. O-O {[%clk 0:03:01]}  Be7 {[%clk 0:03:00]} 8. Nc3 {[%clk 0:03:01]}  O-O {[%clk 0:03:00]} 9. dxc5 {[%clk 0:03:00]}  Bxc5 {[%clk 0:03:01]} 10. Na4 {[%clk 0:03:00]}  Be7 {[%clk 0:03:00]} 11. Be3 {[%clk 0:03:01]}  b6 {[%clk 0:03:00]} 12. Rc1 {[%clk 0:03:00]}  Bb7 {[%clk 0:03:00]} 13. Nc3 {[%clk 0:03:00]}  Qd7 {[%clk 0:02:54]} 14. Nd4 {[%clk 0:02:55]}  Rfd8 {[%clk 0:02:51]} 15. Qd3 {[%clk 0:02:43]}  Ne5 {[%clk 0:02:43]} 16. Qf5 {[%clk 0:02:42]}  Nc4 {[%clk 0:02:38]} 17. Qxd7 {[%clk 0:02:19]}  Rxd7 {[%clk 0:02:39]} 18. Nxd5 {[%clk 0:02:12]}  Bxd5 {[%clk 0:02:25]} 19. Bxd5 {[%clk 0:02:11]}  Nxe3 {[%clk 0:02:15]} 20. Bxa8 {[%clk 0:02:03]}  Nxf1 {[%clk 0:02:15]} 21. Nb3 {[%clk 0:01:20]}  Nd2 {[%clk 0:02:07]} 22. Rc8+ {[%clk 0:01:16]}  Bf8 {[%clk 0:02:04]} 23. Bc6 {[%clk 0:01:11]}  Rd6 {[%clk 0:02:02]} 24. Nc1 {[%clk 0:01:09]}  Nde4 {[%clk 0:02:01]} 25. Nd3 {[%clk 0:01:08]}  Nc5 {[%clk 0:02:01]} 26. Ne5 {[%clk 0:01:04]}  Nfd7 {[%clk 0:01:56]} 27. Nc4 {[%clk 0:00:57]}  Rd1+ {[%clk 0:01:54]} 28. Kg2 {[%clk 0:00:58]}  Rd4 {[%clk 0:01:44]} 29. Ne3 {[%clk 0:00:54]}  Ne5 {[%clk 0:01:40]} 30. Nf5 {[%clk 0:00:49]}  Nxc6 {[%clk 0:01:32]} 31. Rxc6 {[%clk 0:00:46]}  Rd8 {[%clk 0:01:29]} 32. Rc7 {[%clk 0:00:46]}  g6 {[%clk 0:01:28]} 33. Ne3 {[%clk 0:00:43]}  a5 {[%clk 0:01:25]} 34. Nc4 {[%clk 0:00:42]}  Ne6 {[%clk 0:01:21]} 35. Rb7 {[%clk 0:00:42]}  Bc5 {[%clk 0:01:20]} 36. Ne5 {[%clk 0:00:42]}  f6 {[%clk 0:01:12]} 37. Nd7 {[%clk 0:00:42]}  Kh8 {[%clk 0:01:00]} 38. Nxf6 {[%clk 0:00:38]}  Nf8 {[%clk 0:00:56]} 39. Rf7 {[%clk 0:00:32]}  Rd2 {[%clk 0:00:49]} 40. Ne4 {[%clk 0:00:29]}  Rd8 {[%clk 0:00:49]} 41. Nxc5 {[%clk 0:00:25]}  bxc5 {[%clk 0:00:50]} 42. Rc7 {[%clk 0:00:25]}  Ne6 {[%clk 0:00:49]} 43. Rc6 {[%clk 0:00:23]}  Re8 {[%clk 0:00:45]} 44. Ra6 {[%clk 0:00:23]}  Nd4 {[%clk 0:00:44]} 45. e3 {[%clk 0:00:23]}  Ne6 {[%clk 0:00:42]} 46. Rxa5 {[%clk 0:00:23]}  Kg7 {[%clk 0:00:42]} 47. Ra7+ {[%clk 0:00:20]}  Kg8 {[%clk 0:00:42]} 48. a4 {[%clk 0:00:20]}  Rb8 {[%clk 0:00:41]} 49. Re7 {[%clk 0:00:18]}  Nf8 {[%clk 0:00:41]} 50. Rc7 {[%clk 0:00:17]}  Rxb2 {[%clk 0:00:40]} 51. Rxc5 {[%clk 0:00:17]}  Ra2 {[%clk 0:00:41]} 52. a5 {[%clk 0:00:17]}  Ne6 {[%clk 0:00:41]} 53. Re5 {[%clk 0:00:17]}  Nc7 {[%clk 0:00:38]} 54. Rc5 {[%clk 0:00:13]}  Ne6 {[%clk 0:00:37]} 55. Re5 {[%clk 0:00:13]}  Kf7 {[%clk 0:00:37]} 56. Kf3 {[%clk 0:00:12]}  Nd8 {[%clk 0:00:37]} 57. Rb5 {[%clk 0:00:11]}  Nc6 {[%clk 0:00:34]} 58. Rb7+ {[%clk 0:00:10]}  Kg8 {[%clk 0:00:34]} 59. Rc7 {[%clk 0:00:09]}  Nxa5 {[%clk 0:00:33]} 60. Ra7 {[%clk 0:00:09]}  Ra3 {[%clk 0:00:34]} 61. Kf4 {[%clk 0:00:09]}  Nc4 {[%clk 0:00:33]} 62. Rc7 {[%clk 0:00:09]}  Ra4 {[%clk 0:00:29]} 63. Kg5 {[%clk 0:00:08]}  Nd6 {[%clk 0:00:29]} 64. Rd7 {[%clk 0:00:07]}  Nf7+ {[%clk 0:00:28]} 65. Kf6 {[%clk 0:00:08]}  Ra6+ {[%clk 0:00:28]} 66. Ke7 {[%clk 0:00:08]}  Kg7 {[%clk 0:00:25]} 67. Ke8 {[%clk 0:00:07]}  Re6+ {[%clk 0:00:24]} 68. Re7 {[%clk 0:00:06]}  Rxe7+ {[%clk 0:00:25]} 69. Kxe7 {[%clk 0:00:07]}  Ne5 {[%clk 0:00:25]} 70. e4 {[%clk 0:00:06]}  Ng4 {[%clk 0:00:24]} 71. f4 {[%clk 0:00:06]}  Nxh2 {[%clk 0:00:24]} 72. e5 {[%clk 0:00:06]}  Nf1 {[%clk 0:00:23]} 73. e6 {[%clk 0:00:06]}  Nxg3 {[%clk 0:00:24]} 74. Kd7 {[%clk 0:00:06]}  Nf5 {[%clk 0:00:24]} 75. e7 {[%clk 0:00:05]}  Nxe7 {[%clk 0:00:24]} 76. Kxe7 {[%clk 0:00:06]}  h5 {[%clk 0:00:24]} 0-1


[Site "https://www.chess.com"]

[Event "Titled Tuesday Blitz March 14 Late 2023"]
[White "Stelmaszyk, Nico"]
[Black "Diaz Rosas, Julio Cesar"]
[WhiteFideId "16200462"]
[BlackFideId "5105099"]
[WhiteElo "2255"]
[BlackElo "2270"]
[Result "1-0"]
[Round "04"]
[TimeControl "180+1"]
[Date "2023.03.14"]
[WhiteClock "0:01:13"]
[BlackClock "0:00:05"]

1. e4 {[%clk 0:03:00]}  c6 {[%clk 0:02:56]} 2. Nf3 {[%clk 0:03:00]}  d5 {[%clk 0:02:55]} 3. d3 {[%clk 0:03:01]}  Bg4 {[%clk 0:02:53]} 4. h3 {[%clk 0:03:00]}  Bh5 {[%clk 0:02:50]} 5. Nc3 {[%clk 0:02:57]}  e6 {[%clk 0:02:46]} 6. g4 {[%clk 0:02:47]}  Bg6 {[%clk 0:02:44]} 7. a3 {[%clk 0:02:44]}  Nf6 {[%clk 0:02:35]} 8. e5 {[%clk 0:02:44]}  Nfd7 {[%clk 0:02:33]} 9. Bg2 {[%clk 0:02:43]}  c5 {[%clk 0:02:18]} 10. O-O {[%clk 0:02:40]}  Nc6 {[%clk 0:02:16]} 11. Qe2 {[%clk 0:02:34]}  Be7 {[%clk 0:02:08]} 12. Bf4 {[%clk 0:02:31]}  O-O {[%clk 0:02:01]} 13. Rad1 {[%clk 0:02:27]}  a6 {[%clk 0:01:59]} 14. Bg3 {[%clk 0:02:25]}  b5 {[%clk 0:01:56]} 15. Nh2 {[%clk 0:02:19]}  Bh4 {[%clk 0:01:51]} 16. Bxh4 {[%clk 0:02:17]}  Qxh4 {[%clk 0:01:52]} 17. f3 {[%clk 0:02:17]}  h6 {[%clk 0:01:36]} 18. f4 {[%clk 0:02:17]}  Nd4 {[%clk 0:01:32]} 19. Qf2 {[%clk 0:02:16]}  Qxf2+ {[%clk 0:01:31]} 20. Rxf2 {[%clk 0:02:17]}  Bh7 {[%clk 0:01:25]} 21. Nf3 {[%clk 0:02:16]}  Nxf3+ {[%clk 0:01:21]} 22. Bxf3 {[%clk 0:02:16]}  b4 {[%clk 0:01:20]} 23. axb4 {[%clk 0:02:15]}  cxb4 {[%clk 0:01:21]} 24. Na4 {[%clk 0:02:16]}  Rfc8 {[%clk 0:01:18]} 25. b3 {[%clk 0:02:16]}  Rc7 {[%clk 0:01:15]} 26. Ra1 {[%clk 0:02:13]}  Rac8 {[%clk 0:01:14]} 27. Bd1 {[%clk 0:02:13]}  f6 {[%clk 0:01:06]} 28. exf6 {[%clk 0:02:13]}  gxf6 {[%clk 0:01:07]} 29. Kf1 {[%clk 0:02:12]}  Kf7 {[%clk 0:01:06]} 30. Ke1 {[%clk 0:02:12]}  Ke7 {[%clk 0:01:06]} 31. Kd2 {[%clk 0:02:11]}  e5 {[%clk 0:01:06]} 32. f5 {[%clk 0:02:11]}  Kd6 {[%clk 0:01:05]} 33. Nb2 {[%clk 0:02:02]}  Nb8 {[%clk 0:01:04]} 34. Ra4 {[%clk 0:02:00]}  Rb7 {[%clk 0:01:01]} 35. Rg2 {[%clk 0:01:51]}  Bg8 {[%clk 0:00:59]} 36. h4 {[%clk 0:01:50]}  Bf7 {[%clk 0:00:52]} 37. g5 {[%clk 0:01:50]}  hxg5 {[%clk 0:00:52]} 38. hxg5 {[%clk 0:01:51]}  fxg5 {[%clk 0:00:52]} 39. Rxg5 {[%clk 0:01:52]}  Rh8 {[%clk 0:00:51]} 40. Rg4 {[%clk 0:01:45]}  Rh2+ {[%clk 0:00:46]} 41. Kc1 {[%clk 0:01:45]}  d4 {[%clk 0:00:44]} 42. Bf3 {[%clk 0:01:40]}  Rb6 {[%clk 0:00:40]} 43. Rg7 {[%clk 0:01:38]}  Ke7 {[%clk 0:00:20]} 44. Nc4 {[%clk 0:01:38]}  Rf6 {[%clk 0:00:18]} 45. Nxe5 {[%clk 0:01:28]}  Rxf5 {[%clk 0:00:17]} 46. Rxf7+ {[%clk 0:01:27]}  Rxf7 {[%clk 0:00:17]} 47. Nxf7 {[%clk 0:01:28]}  Kxf7 {[%clk 0:00:17]} 48. Rxb4 {[%clk 0:01:28]}  Nd7 {[%clk 0:00:17]} 49. Rxd4 {[%clk 0:01:27]}  Ne5 {[%clk 0:00:17]} 50. Be4 {[%clk 0:01:25]}  Ke6 {[%clk 0:00:17]} 51. Ra4 {[%clk 0:01:25]}  Kd6 {[%clk 0:00:17]} 52. Rxa6+ {[%clk 0:01:25]}  Kc5 {[%clk 0:00:17]} 53. Kb2 {[%clk 0:01:25]}  Kd4 {[%clk 0:00:15]} 54. Ra4+ {[%clk 0:01:24]}  Ke3 {[%clk 0:00:15]} 55. b4 {[%clk 0:01:23]}  Kd2 {[%clk 0:00:14]} 56. b5 {[%clk 0:01:22]}  Nd7 {[%clk 0:00:11]} 57. Bc6 {[%clk 0:01:21]}  Nc5 {[%clk 0:00:11]} 58. Rc4 {[%clk 0:01:19]}  Ne6 {[%clk 0:00:09]} 59. b6 {[%clk 0:01:18]}  Rh8 {[%clk 0:00:06]} 60. Bd5 {[%clk 0:01:13]}  Ng5 {[%clk 0:00:05]} 61. b7 {[%clk 0:01:13]} 1-0


[Site "https://www.chess.com"]